fUST/lending_fUST_20250417
["ID","MTS","AMOUNT","RATE_DAILY","PERIOD"]
[358243369,1744872632074,-225.28576252,0.0002,2]
[358243371,1744872632083,-151.0,0.00020889,2]
[358243372,1744872632093,-207.4,0.00020889,2]
[358243373,1744872632104,-664.463884,0.000209,2]
[358243374,1744872632114,-1881.36772425,0.000209,2]
[358243375,1744872632124,-300.0,0.000209,2]
[358243376,1744872632134,-632.262532,0.00020901,2]
[358243378,1744872632143,-300.0,0.00020901,2]
[358243379,1744872632154,-3961.33852652,0.00020902,2]
[358243381,1744872632163,-742.95119244,0.00020902,3]
[358243383,1744872632172,-44482.60802923,0.00020902,2]
[358243425,1744872638112,-656.70135528,0.00020902,2]
[358243430,1744872638258,-93079.53181193,0.00020902,2]
[358243591,1744872644716,-560.21934862,0.00020902,2]
[358243651,1744872646195,-29967.9552299,0.00020902,2]
[358243691,1744872749669,-329.25254448,0.00018711,2]
[358243692,1744873323559,223.55374452,0.0001801,2]
[358243752,1744873832061,-160.0,0.000188,2]
[358243754,1744873832072,-200.58099788,0.000189,2]
[358243756,1744873832081,-3759.40820691,0.00019726,2]
[358243758,1744873832091,-160.0,0.0002,3]
[358243760,1744873832100,-2254.51263002,0.00020701,2]
[358243762,1744873832109,-300.0,0.00020799,2]
[358243764,1744873832119,-300.0,0.000208,2]
[358243766,1744873832128,-1817.36818,0.000208,2]
[358243770,1744873832153,-427.63,0.00020799,2]
[358243774,1744873832182,-72.37,0.00020799,2]
[358243776,1744873832192,-500.0,0.00020799,2]
[358243778,1744873832201,-500.0,0.00020799,2]
[358243780,1744873832211,-3182.63182,0.000208,2]
[358243782,1744873832220,-8249.50543658,0.000208,2]
[358243784,1744873832229,-442.5837724,0.00020801,2]
[358243786,1744873832240,-5846.38216251,0.00020802,2]
[358243788,1744873832250,-585.71002891,0.00020802,3]
[358243790,1744873832259,-15585.59100638,0.00020802,2]
[358243903,1744873838513,-500.0,0.00020799,2]
[358243905,1744873838524,-500.0,0.00020799,2]
[358243907,1744873838533,-500.0,0.00020799,2]
[358243909,1744873838542,-500.0,0.00020799,2]
[358243911,1744873838552,-500.0,0.00020799,2]
[358243913,1744873838562,-500.0,0.00020799,2]
[358243915,1744873838571,-500.0,0.00020799,2]
[358243916,1744873838580,-500.0,0.00020799,2]
[358243918,1744873838589,-500.0,0.00020799,2]
[358243921,1744873838599,-500.0,0.00020799,2]
[358243922,1744873838608,-500.0,0.00020799,2]
[358243925,1744873838618,-500.0,0.00020799,2]
[358243927,1744873838627,-500.0,0.00020799,2]
[358243928,1744873838636,-500.0,0.00020799,2]
[358243930,1744873838646,-500.0,0.00020799,2]
[358243932,1744873838655,-500.0,0.00020799,2]
[358243934,1744873838664,-500.0,0.00020799,2]
[358243936,1744873838674,-500.0,0.00020799,2]
[358243938,1744873838683,-500.0,0.00020799,2]
[358243940,1744873838693,-500.0,0.00020799,2]
[358243942,1744873838703,-500.0,0.00020799,2]
[358243944,1744873838712,-500.0,0.00020799,2]
[358243946,1744873838722,-500.0,0.00020799,2]
[358243948,1744873838732,-500.0,0.00020799,2]
[358243950,1744873838741,-500.0,0.00020799,2]
[358243952,1744873838751,-500.0,0.00020799,2]
[358243954,1744873838760,-500.0,0.00020799,2]
[358243956,1744873838770,-500.0,0.00020799,2]
[358243958,1744873838779,-500.0,0.00020799,2]
[358243960,1744873838788,-500.0,0.00020799,2]
[358243962,1744873838797,-500.0,0.00020799,2]
[358243963,1744873838807,-500.0,0.00020799,2]
[358243964,1744873838817,-500.0,0.00020799,2]
[358243965,1744873838827,-499.955,0.00020799,2]
[358243966,1744873838836,-500.0,0.00020799,2]
[358243967,1744873838846,-500.0,0.00020799,2]
[358243968,1744873838856,-500.0,0.00020799,2]
[358243969,1744873838866,-500.0,0.00020799,2]
[358243970,1744873838875,-500.0,0.00020799,2]
[358243971,1744873838885,-500.0,0.00020799,2]
[358243972,1744873838895,-500.0,0.00020799,2]
[358243973,1744873838905,-500.0,0.00020799,2]
[358243974,1744873838915,-500.0,0.00020799,2]
[358243975,1744873838926,-500.0,0.00020799,2]
[358243976,1744873838936,-500.0,0.00020799,2]
[358243977,1744873838946,-500.0,0.00020799,2]
[358243978,1744873838961,-117.10348651,0.00020799,2]
[358244027,1744873840592,-382.89651349,0.00020799,2]
[358244029,1744873840604,-295.77742053,0.00020799,2]
[358244218,1744873844549,-204.22257947,0.00020799,2]
[358244219,1744873844560,-500.0,0.00020799,2]
[358244220,1744873844571,-500.0,0.00020799,2]
[358244221,1744873844582,-250.47742051,0.00020799,2]
[358244370,1744873846147,-249.52257949,0.00020799,2]
[358244372,1744873846158,-26714.19064581,0.00020802,2]
[358244374,1744873846171,-40069.46308788,0.00020802,2]
[358244385,1744873846285,-643.90653381,0.00020802,2]
[358244715,1744874925431,207.83532245,0.00016,2]
[358244723,1744875020020,4869.1,0.00017999,3]
[358244762,1744875032286,-303.43263409,0.00019625,2]
[358244764,1744875032296,-665.05259909,0.00019725,2]
[358244766,1744875032306,-300.0,0.00019825,2]
[358244768,1744875032316,-300.0,0.00019825,2]
[358244770,1744875032326,-2327.28215411,0.00019826,2]
[358244772,1744875032338,-11442.56805409,0.00019826,2]
[358244774,1744875032347,-2169.68744856,0.00019876,2]
[358244776,1744875032357,-272.64695517,0.00019976,2]
[358244778,1744875032366,-500.0,0.00019976,2]
[358244780,1744875032376,-245.45907521,0.00019976,2]
[358244782,1744875032385,-500.0,0.00019976,2]
[358244783,1744875032395,-500.0,0.00019976,2]
[358244785,1744875032405,-500.0,0.00019976,2]
[358244787,1744875032414,-500.0,0.00019976,2]
[358244789,1744875032423,-500.0,0.00019976,2]
[358244791,1744875032433,-500.0,0.00019976,2]
[358244793,1744875032443,-500.0,0.00019976,2]
[358244795,1744875032453,-500.0,0.00019976,2]
[358244798,1744875032463,-500.0,0.00019976,2]
[358244800,1744875032472,-500.0,0.00019976,2]
[358244802,1744875032482,-500.0,0.00019976,2]
[358244804,1744875032491,-500.0,0.00019976,2]
[358244805,1744875032500,-500.0,0.00019976,2]
[358244807,1744875032509,-500.0,0.00019976,2]
[358244809,1744875032519,-500.0,0.00019976,2]
[358244811,1744875032528,-500.0,0.00019976,2]
[358244814,1744875032538,-500.0,0.00019976,2]
[358244816,1744875032547,-500.0,0.00019976,2]
[358244818,1744875032556,-500.0,0.00019976,2]
[358244820,1744875032565,-500.0,0.00019976,2]
[358244822,1744875032575,-500.0,0.00019976,2]
[358244823,1744875032585,-500.0,0.00019976,2]
[358244826,1744875032594,-500.0,0.00019976,2]
[358244827,1744875032604,-500.0,0.00019976,2]
[358244830,1744875032613,-500.0,0.00019976,2]
[358244831,1744875032623,-500.0,0.00019976,2]
[358244834,1744875032633,-603.97818207,0.00019976,2]
[358244836,1744875032643,-500.0,0.00019976,2]
[358244837,1744875032653,-500.0,0.00019976,2]
[358244839,1744875032663,-500.0,0.00019976,2]
[358244841,1744875032673,-500.0,0.00019976,2]
[358244843,1744875032683,-500.0,0.00019976,2]
[358244845,1744875032693,-500.0,0.00019976,2]
[358244847,1744875032707,-500.0,0.00019976,2]
[358244849,1744875032717,-500.0,0.00019976,2]
[358244850,1744875032726,-500.0,0.00019976,2]
[358244851,1744875032736,-500.0,0.00019976,2]
[358244852,1744875032746,-500.0,0.00019976,2]
[358244853,1744875032756,-500.0,0.00019976,2]
[358244854,1744875032766,-500.0,0.00019976,2]
[358244856,1744875032776,-500.0,0.00019976,2]
[358244858,1744875032786,-500.0,0.00019976,2]
[358244859,1744875032795,-500.0,0.00019976,2]
[358244860,1744875032804,-500.0,0.00019976,2]
[358244861,1744875032813,-199.9955,0.00019976,2]
[358244862,1744875032822,-500.0,0.00019976,2]
[358244863,1744875032831,-500.0,0.00019976,2]
[358244864,1744875032840,-500.0,0.00019976,2]
[358244865,1744875032850,-366.64854002,0.00019976,2]
[358244866,1744875032859,-500.0,0.00019976,2]
[358244867,1744875032869,-500.0,0.00019976,2]
[358244868,1744875032879,-500.0,0.00019976,2]
[358244869,1744875032889,-500.0,0.00019976,2]
[358244870,1744875032898,-500.0,0.00019976,2]
[358244871,1744875032907,-500.0,0.00019976,2]
[358244872,1744875032916,-500.0,0.00019976,2]
[358244873,1744875032926,-500.0,0.00019976,2]
[358244874,1744875032936,-500.0,0.00019976,2]
[358244875,1744875032945,-500.0,0.00019976,2]
[358244876,1744875032954,-500.0,0.00019976,2]
[358244877,1744875032964,-500.0,0.00019976,2]
[358244878,1744875032973,-500.0,0.00019976,2]
[358244879,1744875032982,-500.0,0.00019976,2]
[358244880,1744875032990,-500.0,0.00019976,2]
[358244881,1744875032998,-500.0,0.00019976,2]
[358244882,1744875033007,-500.0,0.00019976,2]
[358244883,1744875033017,-500.0,0.00019976,2]
[358244884,1744875033026,-500.0,0.00019976,2]
[358244885,1744875033035,-500.0,0.00019976,2]
[358244886,1744875033045,-505.10204082,0.00019976,2]
[358244887,1744875033054,-505.10204082,0.00019976,2]
[358244888,1744875033064,-505.10204082,0.00019976,2]
[358244889,1744875033073,-505.10204082,0.00019976,2]
[358244890,1744875033082,-505.10204082,0.00019976,2]
[358244891,1744875033091,-505.10204082,0.00019976,2]
[358244892,1744875033100,-500.0,0.00019976,2]
[358244893,1744875033110,-505.10204082,0.00019976,2]
[358244894,1744875033120,-500.0,0.00019976,2]
[358244895,1744875033130,-505.10204082,0.00019976,2]
[358244896,1744875033139,-500.0,0.00019976,2]
[358244897,1744875033148,-505.10204082,0.00019976,2]
[358244898,1744875033157,-455.99757578,0.00019976,2]
[358244899,1744875033167,-505.10204082,0.00019976,2]
[358244900,1744875033175,-505.10204082,0.00019976,2]
[358244901,1744875033184,-505.10204082,0.00019976,2]
[358244902,1744875033193,-505.10204082,0.00019976,2]
[358244903,1744875033203,-505.10204082,0.00019976,2]
[358244904,1744875033212,-505.10204082,0.00019976,2]
[358244905,1744875033222,-505.10204082,0.00019976,2]
[358244906,1744875033231,-505.10204082,0.00019976,2]
[358244907,1744875033240,-505.10204082,0.00019976,2]
[358244908,1744875033249,-505.10204082,0.00019976,2]
[358244909,1744875033259,-505.10204082,0.00019976,2]
[358244910,1744875033270,-505.10204082,0.00019976,2]
[358244911,1744875033279,-505.10204082,0.00019976,2]
[358244912,1744875033288,-505.10204082,0.00019976,2]
[358244913,1744875033298,-505.10204082,0.00019976,2]
[358244914,1744875033310,-500.0,0.00019976,2]
[358244915,1744875033321,-500.0,0.00019976,2]
[358244916,1744875033330,-500.0,0.00019976,2]
[358244917,1744875033340,-500.0,0.00019976,2]
[358244918,1744875033350,-500.0,0.00019976,2]
[358244919,1744875033359,-500.0,0.00019976,2]
[358244920,1744875033369,-500.0,0.00019976,2]
[358244921,1744875033381,-500.0,0.00019976,2]
[358244922,1744875033390,-500.0,0.00019976,2]
[358244923,1744875033400,-500.0,0.00019976,2]
[358244924,1744875033409,-500.0,0.00019976,2]
[358244925,1744875033419,-364.79591829,0.00019976,2]
[358244926,1744875033428,-500.0,0.00019976,2]
[358244927,1744875033438,-500.0,0.00019976,2]
[358244928,1744875033447,-500.0,0.00019976,2]
[358244929,1744875033456,-500.0,0.00019976,2]
[358244930,1744875033466,-500.0,0.00019976,2]
[358244931,1744875033476,-500.0,0.00019976,2]
[358244932,1744875033485,-521.8962585,0.00019976,2]
[358244933,1744875033495,-521.8962585,0.00019976,2]
[358244934,1744875033504,-521.8962585,0.00019976,2]
[358244935,1744875033514,-521.8962585,0.00019976,2]
[358244936,1744875033523,-521.8962585,0.00019976,2]
[358244937,1744875033532,-896.83420474,0.00019977,2]
[358244938,1744875033541,-160.0,0.0002,3]
[358244939,1744875033551,-323.28970441,0.00020292,2]
[358244940,1744875033560,-323.28970439,0.00020464,2]
[358244941,1744875033570,-500.0,0.00020493,2]
[358244942,1744875033579,-151.15423858,0.00020493,2]
[358244943,1744875033589,-200.32759676,0.00020493,2]
[358244944,1744875033598,-500.0,0.00020493,2]
[358244945,1744875033607,-151.0,0.00020493,2]
[358244946,1744875033617,-500.0,0.00020493,2]
[358244947,1744875033626,-151.0,0.00020493,2]
[358244948,1744875033636,-500.0,0.00020493,2]
[358244949,1744875033646,-500.0,0.00020493,2]
[358244950,1744875033656,-151.0,0.00020584,2]
[358244951,1744875033666,-151.0,0.00020584,2]
[358244952,1744875033676,-151.0,0.00020584,2]
[358244953,1744875033685,-151.0,0.00020584,2]
[358244954,1744875033697,-151.0,0.00020584,2]
[358244955,1744875033708,-151.0,0.00020584,2]
[358244956,1744875033718,-151.0,0.00020584,2]
[358244957,1744875033729,-151.0,0.00020584,2]
[358244958,1744875033739,-151.0,0.00020584,2]
[358244959,1744875033749,-151.0,0.00020584,2]
[358244960,1744875033759,-151.0,0.00020584,2]
[358244961,1744875033769,-151.0,0.00020584,2]
[358244962,1744875033780,-151.0,0.00020584,2]
[358244963,1744875033790,-151.0,0.00020584,2]
[358244964,1744875033800,-151.0,0.00020584,2]
[358244965,1744875033809,-179.18894328,0.00020584,2]
[358244966,1744875033819,-207.4,0.00020584,2]
[358244967,1744875033829,-160.82567716,0.00020595,2]
[358244968,1744875033838,-4637.13439476,0.00020596,2]
[358244969,1744875033849,-399.9722308,0.00020596,3]
[358244970,1744875033859,-20215.70608246,0.00020596,2]
[358244971,1744875033873,-293.524307,0.00020596,2]
[358244972,1744875033886,-22503.00896754,0.00020596,2]
[358245018,1744875038528,-1057.75877963,0.00020596,2]
[358245182,1744875214946,-234.10378995,0.00018945,2]
[358245183,1744875228807,-162.16265803,0.00018755,2]
[358245185,1744875313284,200.0,0.00025,120]
[358245186,1744875334761,200.0,0.00023,30]
[358245189,1744875526773,200.0,8.2e-07,30]
[358245190,1744875552032,200.0,9.6e-07,30]
[358245191,1744875570465,200.0,1.1e-06,30]
[358245192,1744875585975,200.0,1.23e-06,30]
[358245193,1744875643477,200.0,1.37e-06,30]
[358245194,1744875659430,200.0,1.64e-06,30]
[358245197,1744875769484,200.0,1.64e-06,30]
[358245198,1744875914502,-15.89621005,0.00018945,2]
[358245199,1744875914526,-190.41762035,0.00019752,2]
[358245200,1744875914550,-493.6861696,0.00019752,2]
[358245223,1744876214195,3100.0,0.00025,120]
[358245258,1744876232604,-160.323252,0.00019625,2]
[358245259,1744876232614,-160.323252,0.00019723,2]
[358245260,1744876232624,-506.3138304,0.00019752,2]
[358245261,1744876232634,-1898.47651749,0.00019766,2]
[358245263,1744876232644,-304.0935058,0.00019772,2]
[358245265,1744876232653,-2695.0761233,0.00019852,2]
[358245267,1744876232663,-151.0,0.00019856,2]
[358245269,1744876232673,-300.0,0.00019865,2]
[358245271,1744876232683,-189.80191627,0.0002,2]
[358245273,1744876232692,-207.4,0.00020293,2]
[358245275,1744876232702,-169.0,0.00020352,2]
[358245277,1744876232712,-464.83101984,0.00020496,2]
[358245279,1744876232722,-245.9325562,0.00020496,2]
[358245282,1744876232732,-500.0,0.00020584,2]
[358245284,1744876232742,-151.0,0.00020584,2]
[358245286,1744876232752,-151.0,0.00020584,2]
[358245288,1744876232762,-151.0,0.00020584,2]
[358245290,1744876232772,-151.0,0.00020584,2]
[358245291,1744876232782,-500.0,0.00020584,2]
[358245293,1744876232792,-151.48171629,0.00020584,2]
[358245295,1744876232802,-215.2188207,0.00020584,2]
[358245297,1744876232812,-500.0,0.00020584,2]
[358245299,1744876232821,-500.0,0.00020584,2]
[358245300,1744876232832,-190.32131168,0.00020584,2]
[358245302,1744876232842,-210.804797,0.00020584,2]
[358245304,1744876232851,-4755.61294968,0.00020584,2]
[358245305,1744876232861,-152.46224435,0.00020584,2]
[358245307,1744876232871,-156.9849632,0.000206,2]
[358245309,1744876232881,-313.8507347,0.000206,2]
[358245311,1744876232891,-156.9849632,0.000206,2]
[358245312,1744876232901,-317.3233486,0.000206,2]
[358245314,1744876232911,-649.58754944,0.00020645,2]
[358245316,1744876232920,-307.2911066,0.000207,2]
[358245318,1744876232930,-646.91830853,0.00020721,2]
[358245319,1744876232940,-299.64988783,0.00020721,2]
[358245321,1744876232950,-151.0,0.00020721,2]
[358245322,1744876232960,-151.0,0.00020721,2]
[358245323,1744876232970,-151.0,0.00020721,2]
[358245324,1744876232979,-501.17261859,0.00020721,2]
[358245325,1744876232989,-500.0,0.00020721,2]
[358245326,1744876233001,-623.18383974,0.00020721,2]
[358245327,1744876233011,-299.72522773,0.00020721,2]
[358245328,1744876233020,-300.27242858,0.00020721,2]
[358245329,1744876233030,-500.0,0.00020721,2]
[358245330,1744876233040,-151.0,0.00020721,2]
[358245331,1744876233050,-151.0,0.00020721,2]
[358245332,1744876233060,-300.49051669,0.00020721,2]
[358245333,1744876233072,-151.0,0.00020721,2]
[358245334,1744876233084,-151.0,0.00020721,2]
[358245335,1744876233096,-500.0,0.00020721,2]
[358245336,1744876233106,-151.0,0.00020721,2]
[358245337,1744876233116,-151.0,0.00020721,2]
[358245338,1744876233127,-151.0,0.00020721,2]
[358245339,1744876233138,-500.0,0.00020721,2]
[358245340,1744876233147,-151.0,0.00020721,2]
[358245341,1744876233158,-500.0,0.00020721,2]
[358245342,1744876233168,-500.0,0.00020721,2]
[358245343,1744876233178,-500.0,0.00020832,2]
[358245344,1744876233188,-1898.47651748,0.00020842,2]
[358245345,1744876233198,-298.27454747,0.00020858,2]
[358245346,1744876233208,-208.62386263,0.00020858,2]
[358245347,1744876233218,-299.94463424,0.00020858,2]
[358245348,1744876233511,-533.70714042,0.00020858,2]
[358245349,1744876233546,-500.0,0.00020858,2]
[358245350,1744876233556,-151.0,0.00020858,2]
[358245351,1744876233566,-151.0,0.00020858,2]
[358245352,1744876233575,-151.0,0.00020858,2]
[358245353,1744876233585,-151.27791255,0.00020858,2]
[358245354,1744876233595,-500.0,0.00020858,2]
[358245355,1744876233604,-195.0893801,0.00020858,2]
[358245356,1744876233615,-500.0,0.00020858,2]
[358245357,1744876233624,-500.0,0.00020858,2]
[358245358,1744876233634,-500.0,0.00020858,2]
[358245359,1744876233643,-183.7882671,0.00020901,2]
[358245360,1744876233652,-177.23183137,0.00020901,2]
[358245361,1744876233662,-500.0,0.00020969,2]
[358245362,1744876233672,-500.0,0.00020995,2]
[358245363,1744876233683,-151.0,0.00020995,2]
[358245364,1744876233692,-200.66461915,0.00020995,2]
[358245365,1744876233702,-151.0,0.00020995,2]
[358245366,1744876233711,-307.21211546,0.00020995,2]
[358245367,1744876233722,-500.0,0.00020995,2]
[358245368,1744876233732,-500.0,0.00020995,2]
[358245369,1744876233742,-500.0,0.00020995,2]
[358245370,1744876233752,-156.86,0.00021,2]
[358245371,1744876233762,-194.42698,0.0002108,2]
[358245372,1744876233772,-194.42698,0.0002108,2]
[358245373,1744876233782,-1000.0,0.0002108,2]
[358245374,1744876233792,-500.0,0.00021106,2]
[358245375,1744876233801,-151.0,0.00021106,2]
[358245376,1744876233811,-437.21518514,0.00021126,2]
[358245377,1744876233821,-500.0,0.00021132,2]
[358245378,1744876233831,-264.36023794,0.00021132,2]
[358245379,1744876233841,-197.64184711,0.00021132,2]
[358245380,1744876233851,-500.0,0.00021132,2]
[358245381,1744876233861,-500.0,0.00021132,2]
[358245382,1744876233881,-500.0,0.00021132,2]
[358245383,1744876233892,-500.0,0.00021225,2]
[358245384,1744876233903,-469.99975189,0.00021225,2]
[358245385,1744876233913,-151.0,0.00021225,2]
[358245386,1744876233923,-541.526,0.00021226,2]
[358245387,1744876233934,-402.0,0.00021226,2]
[358245388,1744876233944,-2248.0,0.00021226,2]
[358245389,1744876233955,-500.0,0.00021243,2]
[358245390,1744876233966,-643.23747647,0.00021269,2]
[358245391,1744876233976,-500.0,0.00021269,2]
[358245392,1744876233986,-500.0,0.00021269,2]
[358245393,1744876233997,-428.55165812,0.00021269,2]
[358245394,1744876234007,-8021.66703306,0.00021306,2]
[358245395,1744876234022,-641.04713627,0.00021306,2]
[358245396,1744876234047,-3202.02889004,0.00021306,2]
[358245397,1744876234059,-1562.80570186,0.00021306,2]
[358245398,1744876234071,-709.80949069,0.00021306,2]
[358245399,1744876234083,-382.5,0.00021306,2]
[358245409,1744876238752,-500.0,0.00019865,2]
[358245410,1744876238763,-192.65597349,0.00019865,2]
[358245411,1744876238775,-500.0,0.00019865,2]
[358245412,1744876238787,-500.0,0.00019865,2]
[358245413,1744876238802,-500.0,0.00019865,2]
[358245414,1744876238813,-500.0,0.00019865,2]
[358245415,1744876238823,-500.0,0.00019865,2]
[358245416,1744876238835,-500.0,0.00019865,2]
[358245417,1744876238846,-299.9995,0.00019865,2]
[358245418,1744876238857,-50.11789837,0.00019865,2]
[358245419,1744876238871,-449.88210163,0.00019865,2]
[358245420,1744876238883,-500.0,0.00019865,2]
[358245421,1744876238894,-500.0,0.00019865,2]
[358245422,1744876238906,-500.0,0.00019865,2]
[358245423,1744876238916,-432.80558553,0.00019865,2]
[358245424,1744876238927,-500.0,0.00019865,2]
[358245425,1744876238940,-500.0,0.00019865,2]
[358245426,1744876238951,-500.0,0.00019865,2]
[358245427,1744876238962,-500.0,0.00019865,2]
[358245428,1744876238974,-500.0,0.00019865,2]
[358245429,1744876238985,-500.0,0.00019865,2]
[358245430,1744876238996,-500.0,0.00019865,2]
[358245431,1744876239007,-500.0,0.00019865,2]
[358245432,1744876239018,-500.0,0.00019865,2]
[358245433,1744876239029,-500.0,0.00019865,2]
[358245434,1744876239041,-500.0,0.00019865,2]
[358245435,1744876239052,-500.0,0.00019865,2]
[358245436,1744876239063,-500.0,0.00019865,2]
[358245437,1744876239074,-500.0,0.00019865,2]
[358245438,1744876239085,-500.0,0.00019865,2]
[358245439,1744876239099,-500.0,0.00019865,2]
[358245440,1744876239111,-500.0,0.00019865,2]
[358245441,1744876239123,-176.16802309,0.00019865,2]
[358245442,1744876239136,-500.0,0.00019865,2]
[358245443,1744876239147,-500.0,0.00019865,2]
[358245444,1744876239159,-500.0,0.00019865,2]
[358245445,1744876239171,-500.0,0.00019865,2]
[358245446,1744876239183,-500.0,0.00019865,2]
[358245447,1744876239195,-500.0,0.00019865,2]
[358245448,1744876239206,-500.0,0.00019865,2]
[358245449,1744876239219,-183.7882671,0.00020901,2]
[358245450,1744876239231,-177.23183137,0.00020901,2]
[358245451,1744876239242,-150.245,0.00021226,2]
[358245452,1744876239253,-18284.60353059,0.00021306,2]
[358245477,1744876240806,-183.7882671,0.00021305,2]
[358245479,1744876240817,-177.23183137,0.00021305,2]
[358245481,1744876240829,-4426.58962617,0.00021306,2]
[358245483,1744876240842,-433.13742679,0.00021306,2]
[358245486,1744876240856,-597.95323649,0.00021306,2]
[358245505,1744876244239,-46.04422535,0.00021305,2]
[358245559,1744876246693,-137.74404175,0.00021305,2]
[358245561,1744876246703,-177.23183137,0.00021305,2]
[358245563,1744876246713,-1616.31679148,0.00021306,2]
[358245565,1744876246723,-199.9861154,0.00021306,3]
[358245567,1744876246733,-32039.63848242,0.00021306,2]
[358257285,1744876373310,500.97603263,0.00025,120]
[358258466,1744876637054,307.0540957,0.00019,8]
[358258507,1744877432787,-1000.0,0.00019525,2]
[358258509,1744877432796,-250.0,0.00019525,2]
[358258511,1744877432805,-300.0,0.00020256,2]
[358258513,1744877432815,-300.0,0.00020256,2]
[358258515,1744877432824,-21455.5759007,0.00020261,2]
[358258517,1744877432834,-1916.54704636,0.00020405,2]
[358258519,1744877432843,-300.60901669,0.00020505,2]
[358258521,1744877432853,-474.22937747,0.00020594,2]
[358258523,1744877432862,-619.0,0.00021,2]
[358258525,1744877432871,-172.7024507,0.00021199,2]
[358258527,1744877432880,-536.53229647,0.00021206,2]
[358258529,1744877432890,-536.53229645,0.00021217,2]
[358258531,1744877432899,-536.53229645,0.00021228,2]
[358258533,1744877432909,-536.53229645,0.00021239,2]
[358258535,1744877432918,-536.53229645,0.0002125,2]
[358258537,1744877432927,-150.37,0.00021297,2]
[358258539,1744877432937,-154.817,0.00021297,2]
[358258541,1744877432946,-246.67,0.00021297,2]
[358258543,1744877432956,-150.617,0.00021297,2]
[358258545,1744877432965,-256.046,0.00021297,2]
[358258547,1744877432974,-172.014,0.00021297,2]
[358258549,1744877432983,-2248.0,0.00021297,2]
[358258551,1744877432993,-402.0,0.00021297,2]
[358258553,1744877433002,-156.84,0.00021297,2]
[358258555,1744877433012,-183.10886692,0.00021305,2]
[358258557,1744877433022,-500.0,0.00021305,2]
[358258559,1744877433031,-177.23183137,0.00021305,2]
[358258561,1744877433040,-500.0,0.00021305,2]
[358258562,1744877433050,-178.99982633,0.00021305,2]
[358258564,1744877433060,-198.17770375,0.00021305,2]
[358258566,1744877433069,-162.38034723,0.00021305,2]
[358258568,1744877433078,-5868.85630725,0.00021306,2]
[358258571,1744877433090,-1857.40355454,0.00021306,2]
[358259153,1744877438945,-270.31173173,0.00020256,2]
[358259156,1744877438957,-500.0,0.00020256,2]
[358259158,1744877438969,-500.0,0.00020256,2]
[358259160,1744877438980,-500.0,0.00020256,2]
[358259162,1744877438991,-500.0,0.00020256,2]
[358259165,1744877439003,-500.0,0.00020256,2]
[358259167,1744877439015,-500.0,0.00020256,2]
[358259169,1744877439027,-500.0,0.00020256,2]
[358259172,1744877439038,-500.0,0.00020256,2]
[358259174,1744877439049,-500.0,0.00020256,2]
[358259176,1744877439060,-500.0,0.00020256,2]
[358259178,1744877439072,-500.0,0.00020256,2]
[358259181,1744877439083,-500.0,0.00020256,2]
[358259183,1744877439095,-500.0,0.00020256,2]
[358259185,1744877439106,-500.0,0.00020256,2]
[358259187,1744877439117,-500.0,0.00020256,2]
[358259189,1744877439128,-500.0,0.00020256,2]
[358259192,1744877439139,-500.0,0.00020256,2]
[358259194,1744877439151,-500.0,0.00020256,2]
[358259196,1744877439162,-638.55779363,0.00020256,2]